Cogmind - Beta 12 @@@ ROGUE MODE // 2023.03.26 @ 09:19:19 Player: ILikeVoltron Result: Self-destructed Performance ------------- Evolutions (2) 1000 Regions Visited (3) 600 Robots Destroyed (53) 265 Value Destroyed (1286) 1286 Prototype IDs (4) 80 Alien Tech Used (0) 0 Bonus (0) 0 TOTAL SCORE: 3231 Bonus ------- None Cogmind --------- Core Integrity 68/550 Matter 182/300 Energy 81/100 System Corruption 0% Temperature Critical (632) Movement Core (1000) Ox19 Location -8/Materials Parts ------- > --- POWER (1) -------- Reinforced Ion Engine > --- PROPULSION (4) --- (None) > --- UTILITY (3) ------ High-capacity Storage Unit Authchip [Armor] > --- WEAPON (3) ------- Heavy Assault Rifle Improved Assault Rifle Hammer > --- INVENTORY (20) --- Light Treads Carbon-fiber Leg Titanium Leg Aerolev Unit Aerolev Unit Heat Sink Structural Scanner Trap Scanner Transmission Jammer Medium Armor Plating Heavy Armor Plating Improved Medium Armor Plating Particle Cannon High-powered Shotgun EMP Blaster Grenade Launcher Peak State ------------ > --- POWER ------------ Reinforced Ion Engine > --- PROPULSION ------- Aerolev Unit Aerolev Unit Aerolev Unit Aerolev Unit > --- UTILITY ---------- High-capacity Storage Unit Improved Medium Armor Plating Authchip [Armor] > --- WEAPON ----------- High-powered Shotgun High-powered Shotgun Hammer > --- INVENTORY -------- Light Treads Carbon-fiber Leg Titanium Leg Aerolev Unit Aerolev Unit Heat Sink Structural Scanner Trap Scanner Transmission Jammer Medium Armor Plating Heavy Armor Plating Improved Medium Armor Plating Particle Cannon Particle Cannon Light Assault Rifle Heavy Assault Rifle Improved Assault Rifle EMP Blaster Grenade Launcher [Rating: 38] Favorites ----------- Power Reinforced Ion Engine Engine Reinforced Ion Engine Propulsion Aluminum Leg Treads Light Treads Leg Aluminum Leg Hover Unit Aerolev Unit Flight Unit VTOL Module Utility Medium Storage Unit Device Seismic Detector Storage Medium Storage Unit Hackware Authchip [Armor] Protection Light Armor Plating Weapon Improved Assault Rifle Energy Cannon Particle Cannon Ballistic Gun Improved Assault Rifle Impact Weapon Hammer Build | -11 -10 -9 -8 ------- Run | Jun Mat Mat Mat Slots Evolved 4 | . . 2 2 Power . | . . . . Propulsion 2 | . . 1 1 Utility 1 | . . 1 . Weapon 1 | . . . 1 Parts Attached 49 | . 5 32 12 Power 6 | . 1 5 . Engine 6 | . 1 5 . Core . | . . . . Reactor . | . . . . Propulsion 14 | . . 12 2 Treads 4 | . . 4 . Leg 4 | . . 3 1 Wheel . | . . . . Hover 5 | . . 4 1 Flight 1 | . . 1 . Utility 13 | . 2 9 2 Device 5 | . 1 4 . Storage 2 | . 1 1 . Processor . | . . . . Hackware 1 | . . . 1 Protection 5 | . . 4 1 Artifact . | . . . . Weapon 16 | . 2 6 8 Energy Gun . | . . . . Energy Cannon 3 | . . 1 2 Ballistic Gun 11 | . 2 5 4 Ballistic Cannon . | . . . . Launcher . | . . . . Special Weapon . | . . . . Impact Weapon 2 | . . . 2 Slashing Weapon . | . . . . Piercing Weapon . | . . . . Special Melee Weapon . | . . . . Unidentified Prototypes 2 | . . 2 . Parts Lost 17 | . . 8 9 Power 2 | . . 2 . Propulsion 8 | . . 3 5 Utility 3 | . . 2 1 Weapon 4 | . . 1 3 Highest Loss Streak 9 | . . 4 9 To Critical Strikes . | . . . . Average Slot Usage (%) 96 | . 93 96 98 Engine 11 | . 14 11 9 Treads 9 | . . 15 . Leg 12 | . 28 12 . Hover 8 | . . . 34 Flight 1 | . . 1 . Device 12 | . 7 16 7 Storage 11 | . 14 11 9 Protection 4 | . . 4 8 Energy Cannon 1 | . . 1 . Ballistic Gun 21 | . 28 20 17 Impact Weapon 1 | . . . 8 Naked Turns . | . . . . Heaviest Build 67 | 10 16 59 67 Greatest Support 60 | 20 20 60 32 Greatest Overweight (x) 19 | . . 19 5 Average Overweight (x) . | . . . 1 Largest Inventory Capacity 20 | . 10 20 20 Average Capacity 12 | . 9 10 20 Most Carried 20 | . 9 20 20 Average Carried 12 | . 8 10 19 Final Capacity 20 | 8 10 20 20 Final Carried 19 | 6 9 19 17 Class Distribution -------------------- 62% | Mutant 36% | Scavenger-Mutant Dominant Class ---------------- Mutant | -10/Materials Scavenger-Mutant | -9/Materials Mutant | -8/Materials Resources | -11 -10 -9 -8 ----------- Run | Jun Mat Mat Mat Matter Collected 1441 | 192 110 717 422 Remotely . | . . . . Salvage Created 1857 | . 248 955 654 Parts 120 | . 18 63 39 Haulers Intercepted 4 | . 1 3 . Recyclers Shooed 2 | . . 2 . Parts Field Recycled . | . . . . Retrieved Matter . | . . . . Parts Self-Destructed . | . . . . Prevented . | . . . . Kills | -11 -10 -9 -8 ------- Run | Jun Mat Mat Mat Combat Hostiles Destroyed 37 | . 5 20 12 Guns 35 | . 5 20 10 Cannons 2 | . . . 2 Classes Destroyed 11 | . 4 4 3 Worker 2 | . . 2 . Builder 3 | . . . 3 Hauler 4 | . 1 3 . Recycler 2 | . 1 . 1 Mechanic 1 | . . . 1 Operator 1 | . . 1 . Watcher 3 | . . 2 1 Swarmer 14 | . 3 8 3 Grunt 13 | . 2 5 6 Sentry 9 | . . 7 2 Hunter 1 | . . . 1 Best Kill Streak 7 | . 3 6 7 Combat Bots Only 6 | . 3 6 4 Max Kills in Single Turn 2 | . 1 2 1 Gunslinging 1 | . . 1 . Exploded . | . . . . Melee . | . . . . Uniques/NPCs Destroyed . | . . . . Combat | -11 -10 -9 -8 -------- Run | Jun Mat Mat Mat Damage Taken 3257 | . 241 1168 1848 Core 778 | . 109 187 482 Absorbed by Shields . | . . . . Core Remaining (%) 69 | 100 56 53 . Volleys Fired 166 | . 26 96 44 Largest 3 | . 2 2 3 Hottest 136 | . 40 91 136 Shots Fired 334 | . 52 191 91 Gun 318 | . 52 185 81 Cannon 16 | . . 6 10 Launcher . | . . . . Special . | . . . . Kinetic 318 | . 52 185 81 Thermal 16 | . . 6 10 Explosive . | . . . . Electromagnetic . | . . . . Robot Hit Streak 21 | . 9 21 5 Robot Miss Streak 11 | . 5 3 11 Penetration Max . | . . . . Secondary Targets 3 | . . 1 2 Max Gunslinging Chain 1 | . . 1 1 Shots Hit Robots 220 | . 29 137 54 Core Hits 95 | . 16 42 37 Critical Kills 1 | . . . 1 Critical Parts Destroyed 1 | . . 1 . Critical Strikes 2 | . . 1 1 Destroy 2 | . . 1 1 Melee Attacks 9 | . . . 9 Impact 9 | . . . 9 Slashing . | . . . . Piercing . | . . . . Sneak Attacks 1 | . . . 1 Combat Hostiles . | . . . . Follow-up Attacks . | . . . . Damage Inflicted 3206 | . 227 1926 1053 Guns 2928 | . 227 1845 856 Cannons 246 | . . 81 165 Explosions . | . . . . Melee 32 | . . . 32 Ramming . | . . . . Kinetic 2928 | . 227 1845 856 Thermal 246 | . . 81 165 Explosive . | . . . . Electromagnetic . | . . . . Impact 32 | . . . 32 Slashing . | . . . . Piercing . | . . . . Highest Corruption 5 | . . 5 . Average Corruption 5 | . . 5 . Corruption Purged . | . . . . Corruption Blocked . | . . . . Effects 2 | . . 2 . Matter Fused 1 | . . 1 . Data Loss (minor) 1 | . . 1 . Overload Shots . | . . . . Overflow Damage . | . . . . Projectiles . | . . . . Explosions . | . . . . Melee . | . . . . Knockbacks . | . . . . Impact . | . . . . Kinetic . | . . . . Secondary . | . . . . Self-Inflicted Damage . | . . . . Shots . | . . . . Rammed . | . . . . Targets Rammed . | . . . . Kicked . | . . . . Crushed . | . . . . Highest Temperature 802 | . 18 57 802 Average Temperature 202 | . 11 10 365 Received Heat Transfer 1314 | . 93 312 909 Effects 26 | . . . 26 Shutdowns 4 | . . . 4 Energy Bleed 4 | . . . 4 Interference 4 | . . . 4 Matter Decay 3 | . . . 3 Short Circuit 2 | . . . 2 Damage (minor) 1 | . . . 1 Damage (major) 4 | . . . 4 Damage (core) 4 | . . . 4 Siege Activations . | . . . . Robots Corrupted . | . . . . Combat Hostiles . | . . . . Parts Fried . | . . . . Impact Corruptions . | . . . . Robots Melted . | . . . . Combat Hostiles . | . . . . Parts Melted . | . . . . Heat Transferred 444 | . . 148 296 Parts Sabotaged . | . . . . Parts Stolen . | . . . . Parts Stripped . | . . . . Power Chain Reactions . | . . . . Missiles Intercepted . | . . . . Alert | -11 -10 -9 -8 ------- Run | Jun Mat Mat Mat Peak Influence 380 | . 156 380 321 Initial 84 | . . . 84 Average 189 | . 86 215 196 Maximum Alert Level 1 | . . 1 1 Low Security (%) 46 | . 100 31 46 Level 1 53 | . . 68 53 Level 2 . | . . . . Level 3 . | . . . . Level 4 . | . . . . Level 5 . | . . . . High Security . | . . . . Max Security . | . . . . Squads Dispatched 7 | . . 2 5 Investigation 3 | . . . 3 Extermination . | . . . . Reinforcement 3 | . . 2 1 Assault . | . . . . Garrison 1 | . . . 1 Intercept . | . . . . Searches Triggered . | . . . . Construction Impeded . | . . . . Haulers Reinforced . | . . . . Active Scanning Responses . | . . . . Cargo Convoy Interrupts . | . . . . Stealth | -11 -10 -9 -8 --------- Run | Jun Mat Mat Mat Distress Signals 3 | . . 2 1 Communications Jammed . | . . . . Distress Signals . | . . . . Times Spotted 55 | . 7 30 18 Peak Tracking Total 7 | . 3 7 5 Tactical Retreats 1 | . . 1 . Traps | -11 -10 -9 -8 ------- Run | Jun Mat Mat Mat Traps Triggered 1 | . . . 1 Indirectly . | . . . . Trap Hack Attempts . | . . . . Triggered . | . . . . Disarmed . | . . . . Reprogrammed . | . . . . Reused . | . . . . Traps Extracted . | . . . . Installed . | . . . . Triggered . | . . . . Machines | -11 -10 -9 -8 ---------- Run | Jun Mat Mat Mat Machines Disabled 3 | . . 3 . Max in Single Turn 1 | . . 1 . Machines Repaired . | . . . . Machines Sabotaged . | . . . . Overloaded Fab Kills . | . . . . Hacking | -11 -10 -9 -8 --------- Run | Jun Mat Mat Mat Machines Accessed 10 | . 1 6 3 Terminals 8 | . 1 5 2 Fabricators . | . . . . Repair Stations . | . . . . Recycling Units . | . . . . Scanalyzers 2 | . . 1 1 Garrison Access . | . . . . Total Hacks 24 | . 3 13 8 Successful 14 | . 2 8 4 Failed 10 | . 1 5 4 Catastrophic . | . . . . Database Lockouts . | . . . . Manual . | . . . . Terminals 19 | . 3 11 5 Fabricators . | . . . . Repair Stations . | . . . . Recycling Units . | . . . . Scanalyzers 5 | . . 2 3 Garrison Access . | . . . . Terminal Hacks 9 | . 2 6 1 Prototype ID Bank 1 | . . 1 . Emergency Access Points 2 | . . 2 . Locate Traps 2 | . 1 . 1 Dispatch Records 1 | . . 1 . Transport Status 2 | . 1 1 . Zone Layout 1 | . . 1 . Fabricator Hacks . | . . . . Repair Station Hacks . | . . . . Recycling Unit Hacks . | . . . . Scanalyzer 5 | . . 2 3 Insert Component 2 | . . 1 1 Analyze 3 | . . 1 2 Garrison Access Hacks . | . . . . Unauthorized Hacks . | . . . . Terminals . | . . . . Fabricators . | . . . . Repair Stations . | . . . . Recycling Units . | . . . . Scanalyzers . | . . . . Garrison Access . | . . . . Data Cores Recovered 1 | . . 1 . Used . | . . . . Hacking Detections 9 | . 1 5 3 Full Trace Events 2 | . . . 2 Feedback Events . | . . . . Feedback Blocked . | . . . . Robot Schematics Acquired . | . . . . Robots Built . | . . . . Authchips . | . . . . Time . | . . . . Total Robot Build Rating . | . . . . Part Schematics Acquired 2 | . . 1 1 Parts Built . | . . . . Authchips . | . . . . Time . | . . . . Total Part Build Rating . | . . . . Parts Repaired . | . . . . Time . | . . . . Parts Recycled . | . . . . Recycled Matter . | . . . . Retrieved Matter . | . . . . Retrieved Components . | . . . . Parts Scanalyzed 2 | . . 1 1 Part Schematics Acquired 2 | . . 1 1 Parts Damaged . | . . . . Bothacking | -11 -10 -9 -8 ------------ Run | Jun Mat Mat Mat Used RIF Installer . | . . . . Robots Hacked . | . . . . Non-combat . | . . . . Combat . | . . . . Robot Hacks Applied . | . . . . Relay Couplers Released . | . . . . Fabnet Peak Effective % . | . . . . Robots Rewired . | . . . . Allies Hacked . | . . . . Hacks Repelled . | . . . . Allies | -11 -10 -9 -8 -------- Run | Jun Mat Mat Mat Total Allies . | . . . . Largest Group . | . . . . Highest-Rated Group . | . . . . Highest-Rated Ally . | . . . . Total Orders . | . . . . Ally Attacks . | . . . . Total Damage . | . . . . Kills . | . . . . Allies Corrupted . | . . . . Allies Melted . | . . . . Intel | -11 -10 -9 -8 ------- Run | Jun Mat Mat Mat Robot Analysis Total . | . . . . Derelict Logs Recovered . | . . . . Drone Launches . | . . . . Drone Recoveries . | . . . . Exploration | -11 -10 -9 -8 ------------- Run | Jun Mat Mat Mat Turns Passed 2472 | . 416 1503 553 Spaces Moved 1231 | 1 275 716 239 Core 1 | . . 1 . Treads 422 | . . 422 . Legs 557 | 1 275 280 1 Wheels . | . . . . Hover 251 | . . 13 238 Flight . | . . . . Fastest Speed 98 | 120 120 120 98 Average Speed 150 | 120 120 159 156 Slowest Speed 1000 | 120 120 1000 470 Overloaded Moves . | . . . . Propulsion Burnouts . | . . . . Robots Hopped . | . . . . Cave-ins Triggered . | . . . . Exploration Rate (%) 30 | 2 38 60 22 Regions Visited 3 Branch Regions . Pre-discovered Areas . | . . . . Known Exits Taken . | . . . . Unknown Exits Taken 3 | 1 1 1 . Scrap Searched . | . . . . Spaces Dug 2 | . . . 2 Terrain Destroyed 2 | . . . 2 Melee 2 | . . . 2 Projectile . | . . . . AOE . | . . . . Terrain Rammed . | . . . . Walls Destroyed . | . . . . Machines Disabled . | . . . . Actions | -11 -10 -9 -8 --------- Run | Jun Mat Mat Mat Total 1536 | . 320 892 324 Wait 16 | . 9 7 . Move 1228 | . 274 715 239 Hop . | . . . . Pick Up 27 | . 2 14 11 Fast Attach 25 | . 2 22 1 Attach 10 | . . 5 5 Detach 8 | . 1 7 . Swap 14 | . 3 5 6 Drop 33 | . 3 21 9 Fire 166 | . 26 96 44 Melee 9 | . . . 9 Ram . | . . . . Kick . | . . . . Crush . | . . . . Escape Stasis . | . . . . Rewire . | . . . . Trap . | . . . . Miscellaneous . | . . . . Route ------- -11/Junkyard -10/Materials -9/Materials (discovered 2 exits: *Mat x2) -8/Materials History --------- Turn | Location | Event 1 | -11/Junkyard | Discovered new exit (range 0) 1 | -11/Junkyard | Entered Materials 300 | -10/Materials | Build established: Mutant 413 | -10/Materials | Discovered new exit (range 4) 417 | -10/Materials | Entered another Materials area 417 | -9/Materials | Evolved 2 slots: Propulsion x1, Utility x1 611 | -9/Materials | Discovered new exit (range 10) 747 | -9/Materials | Build established: Scavenger-Mutant 903 | -9/Materials | Lost 4 parts (1p3n) 1128 | -9/Materials | Build established: Mutant 1775 | -9/Materials | Build established: Scavenger-Mutant 1852 | -9/Materials | Discovered new exit (range 10) 1920 | -9/Materials | Entered another Materials area 1920 | -8/Materials | Evolved 2 slots: Propulsion x1, Weapon x1 2170 | -8/Materials | Build established: Mutant 2407 | -8/Materials | Garrison activated, responded to threat 2459 | -8/Materials | Core integrity fell below 50% 2464 | -8/Materials | Core integrity fell below 20% 2473 | -8/Materials | Self-destructed Last Messages --------------- 02461_ K-01 Serf collects debris. 02461_ Aerolev Unit destroyed. 02461_ Critical hit (Burn: +37). 02461_ Aluminum Leg destroyed. 02462_ Overheating: Core damaged (-99). 02463_ R-06 Scavenger collects Lgt. Treads. 02464_ Overheating: Core damaged (-60). 02464_ Lgt. Assault Rifle destroyed. 02464_ K-01 Serf collects debris. 02466_ R-06 Scavenger collects Lgt. Armor Plating. 02467_ Overheating: System interference. 02467_ Hvy. Assault Rifle temporarily disabled. 02467_ K-01 Serf collects debris. 02469_ Rnf. Ion Engine broken. 02469_ Overheating: Short circuit. 02470_ Aerolev Unit destroyed. 02470_ R-06 Scavenger collects Beam Rifle. 02471_ K-01 Serf collects debris. 02471_ Critical hit (Burn: +37). 02472_ Overheating: Energy bleed (-24). Map ----- +----------------------------------------------------+ | ?????????????????????????????????????????????????? | | ?????????????????????????????????????????????????? | | ????????????????????????????????????????????????## | | ????????????????????????????????????????????????## | | ????????????????????????????????????????????????## | | ????????????????????????????????????????????????## | | ????????????????????????????????????????????????## | | ???????????????????????????????????????? ######## | | ???????????????????????????????????????? ######### | | ???????????????????????????????????????? # = | | ???????????????????????????????????????? # "T" = | | ???????????????????????????????????????? + | | ???????????????????????????????????????? # | | ???????????????????????????????????????? # """ """ | | ???????????????????????????????????????? # """ """ | | ????????????????????????????????????????## """ """ | | ????????????????????????????????????????## | | ????????????????????????????????????????########## | | ????????????????????????????????????????#### ""### | | ?????????????????????????????????????????###""S### | | ?????????????????????????????????????????###"" ### | | ???????????????????# ????????????????????## | | ????????????????????? ??????????????????## """ | | ???????????????## #####+################### """ | | ?????????? gr * + """ | | ?????????????????###### k@g % k # | | ??????????????????????# * # """ | | ???????????????# [** g + """ | | ???????????????# [** ####!################ """ | | ???????????????# [** ????#%#?????????????## | | ???????????????# ?????#!#??????????############ | | ???????????????# ??????# #?????????? ########### | | ???????????????###???????# #?????????? # ##?? | | ?????????????????????????# #?????????? # ! ##?? | | ?????????????????????????# #?????????? # ]##?? | | ??????????????????????????+#?????????? + !##?? | | ?????????????????????????????????????? # * ##?? | | ??????????????????????????????? ## # * ! #### | | ??????????????????????????????? ####+######+###### | | ??????????????????????????? # %== | = | | ??????????????????????????? + !=%%= | | ???????????????????????????? # ==!!= | | ??????????????????????????????? ## ###+###### | | ??????????????????????????????? ## # [ ### | | ????????????????????????????????## # ##? | | ????????????????????????????????## # ##? | | ???????????????????????????????? # # """ ##? | | ???????????????????????????????? # # """ ##? | | ???????????????????????????????? # # """ ##? | | ???????????????????????????????? # #########? | +----------------------------------------------------+ Best States ------------- Heat Dissipation 41 Energy Generation 12 Energy Capacity 265 Matter Stores 300 Matter Capacity 300 Sight Range 16 Terrain Scan Density 10 Armor Coverage 450 Evasion (%) 55 Recoil Reduction 3 Authchip Count 1 Item Schematics ----------------- Grenade Launcher | -9/Materials | Scanalyzed Imp. Medium Armor Plating | -8/Materials | Scanalyzed Robot Schematics ------------------ None Fabricated ------------ Nothing Alien Tech Used ----------------- None Achievements -------------- None Challenges ------------ None Game ------ Seed StormDrainedDoomcannon Manual? 0 Play Time 00:56:26 Cumulative 90.9 hours Start 2023.03.25 @ 15:54:52 End 2023.03.26 @ 09:19:19 Sessions 2 Manual Loads 0 Difficulty Rogue Special Mode None Game No. 135 Rogue 131 Adventurer 0 Explorer 4 Win Type - Total 0 Types 0/0/0/0/0/0/0/0/0 Lore% 25 Gallery% 40 Achievement% 32 Wizard Run 0 Options --------- ASCII 0 Keyboard 1 Movement Arrows Keybinds 0 Fullscreen 0 Font 20/SmallcapsGlow Map View 113x50 Tactical HUD 1 Map Filters NONE Filters NONE Steam 1 RUN: f0f157be-85ad-44c2-a15a-035e9b18da38